fUSD/lending_fUSD_20240116
["ID","MTS","AMOUNT","RATE_DAILY","PERIOD"]
[311728558,1705366250477,-500.0,0.00022797,2]
[311728559,1705366250491,-500.0,0.00022797,2]
[311728560,1705366250504,-517.04398922,0.00022797,2]
[311728561,1705366250515,-500.0,0.00022797,2]
[311728562,1705366250529,-500.0,0.00022797,2]
[311728563,1705366250542,-500.0,0.00022797,2]
[311728564,1705366250555,-500.0,0.00022797,2]
[311728565,1705366250569,-500.0,0.00022797,2]
[311728566,1705366250583,-500.0,0.00022797,2]
[311728567,1705366250597,-500.0,0.00022797,2]
[311728568,1705366250608,-500.0,0.00022797,2]
[311728569,1705366250618,-500.0,0.00022797,2]
[311728570,1705366250629,-500.0,0.00022797,2]
[311728571,1705366250645,-556.5,0.00022797,2]
[311728572,1705366250658,-500.0,0.00022797,2]
[311728573,1705366250669,-500.0,0.00022797,2]
[311728574,1705366250685,-500.0,0.00022797,2]
[311728575,1705366250696,-510.02,0.00022797,2]
[311728576,1705366250707,-500.0,0.00022797,2]
[311728577,1705366250719,-500.0,0.00022797,2]
[311728578,1705366250731,-500.0,0.00022797,2]
[311728579,1705366250742,-515.62,0.00022797,2]
[311728580,1705366250754,-500.0,0.00022797,2]
[311728581,1705366250766,-500.0,0.00022797,2]
[311728582,1705366250778,-500.0,0.00022797,2]
[311728583,1705366250791,-504.34,0.00022797,2]
[311728584,1705366250803,-500.0,0.00022797,2]
[311728585,1705366250816,-500.0,0.00022797,2]
[311728586,1705366250829,-617.35,0.00022797,2]
[311728587,1705366250840,-500.0,0.00022797,2]
[311728588,1705366250852,-500.0,0.00022797,2]
[311728589,1705366250865,-500.0,0.00022797,2]
[311728590,1705366250877,-500.0,0.00022797,2]
[311728591,1705366250889,-500.0,0.00022797,2]
[311728592,1705366250902,-178.7899682,0.00022797,2]
[311728593,1705366250913,-500.0,0.00022797,2]
[311728594,1705366250925,-729.97,0.00022797,2]
[311728595,1705366250938,-500.0,0.00022797,2]
[311728596,1705366250949,-500.0,0.00022797,2]
[311728597,1705366250961,-500.0,0.00022797,2]
[311728598,1705366250979,-500.0,0.00022797,2]
[311728599,1705366250991,-585.87139535,0.00022797,2]
[311728600,1705366251003,-500.0,0.00022797,2]
[311728601,1705366251016,-621.88880154,0.00022797,2]
[311728602,1705366251028,-500.0,0.00022797,2]
[311728603,1705366251040,-500.0,0.00022797,2]
[311728604,1705366251051,-648.33,0.00022797,2]
[311728605,1705366251063,-500.0,0.00022797,2]
[311728606,1705366251075,-558.28,0.00022797,2]
[311728607,1705366251086,-500.0,0.00022797,2]
[311728608,1705366251099,-500.0,0.00022797,2]
[311728609,1705366251111,-735.22,0.00022797,2]
[311728610,1705366251123,-637.19,0.00022797,2]
[311728611,1705366251136,-500.0,0.00022797,2]
[311728612,1705366251148,-500.0,0.00022797,2]
[311728613,1705366251160,-500.0,0.00022797,2]
[311728614,1705366251171,-500.0,0.00022797,2]
[311728615,1705366251183,-500.0,0.00022797,2]
[311728616,1705366251195,-500.0,0.00022797,2]
[311728617,1705366251207,-500.0,0.00022797,2]
[311728618,1705366251219,-500.0,0.00022797,2]
[311728619,1705366251231,-500.0,0.00022797,2]
[311728620,1705366251243,-500.0,0.00022797,2]
[311728621,1705366251255,-500.0,0.00022797,2]
[311728622,1705366251267,-508.37747601,0.00022797,2]
[311728623,1705366251280,-160.19374603,0.00022797,2]
[311728624,1705366251292,-500.0,0.00022797,2]
[311728625,1705366251304,-545.67433955,0.00022797,2]
[311728626,1705366251316,-500.0,0.00022797,2]
[311728627,1705366251328,-500.0,0.00022797,2]
[311728628,1705366251340,-500.0,0.00022797,2]
[311728629,1705366251352,-500.0,0.00022797,2]
[311728630,1705366251364,-500.0,0.00022797,2]
[311728631,1705366251376,-500.0,0.00022797,2]
[311728632,1705366251387,-815.14,0.00022797,2]
[311728633,1705366251399,-665.34,0.00022797,2]
[311728634,1705366251411,-500.0,0.00022797,2]
[311728635,1705366251423,-500.0,0.00022797,2]
[311728636,1705366251435,-872.53,0.00022797,2]
[311728637,1705366251448,-648.13,0.00022797,2]
[311728638,1705366251460,-1059.04,0.00022797,2]
[311728639,1705366251472,-610.28,0.00022797,2]
[311728640,1705366251484,-500.0,0.00022797,2]
[311728641,1705366251495,-500.0,0.00022797,2]
[311728642,1705366251507,-914.22,0.00022797,2]
[311728643,1705366251519,-500.0,0.00022797,2]
[311728644,1705366251531,-817.47,0.00022797,2]
[311728645,1705366251543,-500.0,0.00022797,2]
[311728646,1705366251555,-500.0,0.00022797,2]
[311728647,1705366251567,-828.86,0.00022797,2]
[311728648,1705366251580,-574.36,0.00022797,2]
[311728649,1705366251592,-500.0,0.00022797,2]
[311728650,1705366251604,-585.42,0.00022797,2]
[311728651,1705366251616,-572.92,0.00022797,2]
[311728652,1705366251629,-789.81,0.00022797,2]
[311728653,1705366251641,-500.0,0.00022797,2]
[311728654,1705366251653,-590.23,0.00022797,2]
[311728655,1705366251665,-1077.28,0.00022797,2]
[311728656,1705366251677,-1963.98,0.00022797,2]
[311728657,1705366251689,-628.81,0.00022797,2]
[311728658,1705366251701,-500.0,0.00022797,2]
[311728659,1705366251713,-500.0,0.00022797,2]
[311728660,1705366251725,-500.0,0.00022797,2]
[311728661,1705366251738,-863.88,0.00022797,2]
[311728662,1705366251750,-500.0,0.00022797,2]
[311728663,1705366251762,-632.72,0.00022797,2]
[311728664,1705366251774,-660.41,0.00022797,2]
[311728665,1705366251786,-530.73266494,0.00022797,2]
[311728666,1705366251799,-840.95,0.00022797,2]
[311728667,1705366251810,-516.76,0.00022797,2]
[311728668,1705366251822,-500.0,0.00022797,2]
[311728669,1705366251834,-500.0,0.00022797,2]
[311728670,1705366251846,-1157.62,0.00022797,2]
[311728671,1705366251858,-627.71,0.00022797,2]
[311728672,1705366251871,-500.0,0.00022797,2]
[311728673,1705366251885,-850.78,0.00022797,2]
[311728674,1705366251897,-1328.25,0.00022797,2]
[311728675,1705366251909,-500.0,0.00022797,2]
[311728676,1705366251921,-507.36275949,0.00022797,2]
[311728677,1705366251933,-500.0,0.00022797,2]
[311728678,1705366251945,-610.66,0.00022797,2]
[311728679,1705366251957,-500.0,0.00022797,2]
[311728680,1705366251969,-1089.43,0.00022797,2]
[311728681,1705366251981,-526.33,0.00022797,2]
[311728682,1705366251994,-500.0,0.00022797,2]
[311728683,1705366252005,-500.0,0.00022797,2]
[311728684,1705366252017,-500.0,0.00022797,2]
[311728685,1705366252029,-526.85,0.00022797,2]
[311728686,1705366252042,-500.0,0.00022797,2]
[311728687,1705366252055,-500.0,0.00022797,2]
[311728688,1705366252068,-687.1,0.00022797,2]
[311728689,1705366252080,-591.56,0.00022797,2]
[311728690,1705366252092,-692.9,0.00022797,2]
[311728691,1705366252105,-719.98,0.00022797,2]
[311728692,1705366252117,-500.0,0.00022797,2]
[311728693,1705366252129,-795.85,0.00022797,2]
[311728694,1705366252141,-304.8854144,0.00022797,2]
[311728695,1705366252153,-1223.86,0.00022797,2]
[311728696,1705366252165,-500.0,0.00022797,2]
[311728697,1705366252177,-500.0,0.00022797,2]
[311728698,1705366252189,-967.05,0.00022797,2]
[311728699,1705366252203,-500.0,0.00022797,2]
[311728700,1705366252215,-842.84,0.00022797,2]
[311728701,1705366252226,-593.041145,0.00022797,2]
[311728702,1705366252238,-601.89,0.00022797,2]
[311728703,1705366252250,-671.05,0.00022797,2]
[311728704,1705366252262,-881.16,0.00022797,2]
[311728705,1705366252273,-500.0,0.00022797,2]
[311728706,1705366252285,-500.0,0.00022797,2]
[311728707,1705366252297,-529.42,0.00022797,2]
[311728708,1705366252309,-502.65,0.00022797,2]
[311728709,1705366252321,-500.0,0.00022797,2]
[311728710,1705366252333,-500.0,0.00022797,2]
[311728711,1705366252344,-771.23,0.00022797,2]
[311728712,1705366252355,-653.91,0.00022797,2]
[311728713,1705366252367,-500.0,0.00022797,2]
[311728714,1705366252379,-606.70376771,0.00022797,2]
[311728715,1705366252391,-500.0,0.00022797,2]
[311728716,1705366252402,-500.0,0.00022797,2]
[311728717,1705366252414,-857.74,0.00022797,2]
[311728718,1705366252425,-595.92,0.00022797,2]
[311728719,1705366252437,-552.89514929,0.00022797,2]
[311728720,1705366252449,-517.22,0.00022797,2]
[311728721,1705366252461,-529.97,0.00022797,2]
[311728722,1705366252472,-759.99,0.00022797,2]
[311728723,1705366252483,-500.0,0.00022797,2]
[311728724,1705366252495,-500.0,0.00022797,2]
[311728725,1705366252506,-772.55,0.00022797,2]
[311728726,1705366252518,-500.0,0.00022797,2]
[311728727,1705366252530,-801.32,0.00022797,2]
[311728728,1705366252542,-500.0,0.00022797,2]
[311728729,1705366252554,-500.0,0.00022797,2]
[311728730,1705366252565,-784.15,0.00022797,2]
[311728731,1705366252577,-500.0,0.00022797,2]
[311728732,1705366252589,-500.0,0.00022797,2]
[311728733,1705366252601,-500.0,0.00022797,2]
[311728734,1705366252613,-500.0,0.00022797,2]
[311728735,1705366252624,-910.58,0.00022797,2]
[311728736,1705366252636,-500.0,0.00022797,2]
[311728737,1705366252651,-1072.92,0.00022797,2]
[311728738,1705366252663,-500.0,0.00022797,2]
[311728739,1705366252675,-500.0,0.00022797,2]
[311728740,1705366252688,-700.54,0.00022797,2]
[311728741,1705366252699,-500.0,0.00022797,2]
[311728742,1705366252711,-500.0,0.00022797,2]
[311728743,1705366252723,-500.0,0.00022797,2]
[311728744,1705366252735,-1293.62,0.00022797,2]
[311728745,1705366252747,-500.0,0.00022797,2]
[311728746,1705366252758,-500.0,0.00022797,2]
[311728747,1705366252770,-500.0,0.00022797,2]
[311728748,1705366252783,-616.63,0.00022797,2]
[311728749,1705366252794,-500.0,0.00022797,2]
[311728750,1705366252806,-500.0,0.00022797,2]
[311728751,1705366252818,-500.0,0.00022797,2]
[311728752,1705366252829,-1315.16,0.00022797,2]
[311728753,1705366252841,-506.97723627,0.00022797,2]
[311728754,1705366252853,-500.0,0.00022797,2]
[311728755,1705366252864,-510.08,0.00022797,2]
[311728756,1705366252875,-500.0,0.00022797,2]
[311728757,1705366252887,-609.62,0.00022797,2]
[311728758,1705366252898,-500.0,0.00022797,2]
[311728759,1705366252910,-500.0,0.00022797,2]
[311728760,1705366252923,-332.87743973,0.00022797,2]
[311728761,1705366252934,-500.0,0.00022797,2]
[311728762,1705366252946,-500.0,0.00022797,2]
[311728763,1705366252957,-505.93,0.00022797,2]
[311728764,1705366252969,-527.58,0.00022797,2]
[311728765,1705366252981,-631.38,0.00022797,2]
[311728766,1705366252993,-1044.79,0.00022797,2]
[311728767,1705366253005,-961.71,0.00022797,2]
[311728768,1705366253016,-500.0,0.00022797,2]
[311728769,1705366253027,-500.0,0.00022797,2]
[311728770,1705366253040,-651.22,0.00022797,2]
[311728771,1705366253051,-500.0,0.00022797,2]
[311728772,1705366253286,-500.0,0.00022797,2]
[311728773,1705366253298,-500.0,0.00022797,2]
[311728774,1705366253309,-730.94,0.00022797,2]
[311728775,1705366253320,-534.07,0.00022797,2]
[311728776,1705366253332,-500.0,0.00022797,2]
[311728777,1705366253342,-500.0,0.00022797,2]
[311728778,1705366253355,-500.0,0.00022797,2]
[311728779,1705366253367,-500.0,0.00022797,2]
[311728780,1705366253378,-500.0,0.00022797,2]
[311728781,1705366253389,-500.0,0.00022797,2]
[311728782,1705366253400,-541.47,0.00022797,2]
[311728783,1705366253412,-500.0,0.00022797,2]
[311728784,1705366253423,-763.01,0.00022797,2]
[311728785,1705366253434,-500.0,0.00022797,2]
[311728786,1705366253446,-500.0,0.00022797,2]
[311728787,1705366253457,-677.8,0.00022797,2]
[311728788,1705366253469,-624.33,0.00022797,2]
[311728789,1705366253480,-821.85,0.00022797,2]
[311728790,1705366253491,-500.0,0.00022797,2]
[311728791,1705366253502,-500.0,0.00022797,2]
[311728792,1705366253513,-500.0,0.00022797,2]
[311728793,1705366253525,-1708.59,0.00022797,2]
[311728794,1705366253536,-500.0,0.00022797,2]
[311728795,1705366253548,-500.0,0.00022797,2]
[311728796,1705366253559,-353.86780426,0.00022797,2]
[311728797,1705366253570,-520.1,0.00022797,2]
[311728798,1705366253582,-812.93,0.00022797,2]
[311728799,1705366253593,-500.0,0.00022797,2]
[311728800,1705366253605,-500.0,0.00022797,2]
[311728801,1705366253616,-595.05,0.00022797,2]
[311728802,1705366253627,-500.0,0.00022797,2]
[311728803,1705366253639,-930.13,0.00022797,2]
[311728804,1705366253651,-731.87,0.00022797,2]
[311728805,1705366253662,-500.0,0.00022797,2]
[311728806,1705366253674,-550.99,0.00022797,2]
[311728807,1705366253685,-500.0,0.00022797,2]
[311728808,1705366253697,-1080.58,0.00022797,2]
[311728809,1705366253708,-500.0,0.00022797,2]
[311728810,1705366253720,-1033.26,0.00022797,2]
[311728811,1705366253731,-500.0,0.00022797,2]
[311728812,1705366253743,-968.29,0.00022797,2]
[311728813,1705366253755,-999.76,0.00022797,2]
[311728814,1705366253767,-500.0,0.00022797,2]
[311728815,1705366253779,-1502.55,0.00022797,2]
[311728816,1705366253791,-1449.28,0.00022797,2]
[311728817,1705366253803,-500.0,0.00022797,2]
[311728818,1705366253815,-507.91687052,0.00022797,2]
[311728819,1705366253827,-500.0,0.00022797,2]
[311728820,1705366253837,-738.23,0.00022797,2]
[311728821,1705366253847,-1681.63,0.00022797,2]
[311728822,1705366253856,-500.0,0.00022797,2]
[311728823,1705366253866,-4233.26,0.00022797,2]
[311728824,1705366253875,-1099.28,0.00022797,2]
[311728825,1705366253885,-6425.09,0.00022797,2]
[311728826,1705366253895,-500.0,0.00022797,2]
[311728827,1705366253904,-500.0,0.00022797,2]
[311728828,1705366253914,-965.33,0.00022797,2]
[311728829,1705366253923,-500.0,0.00022797,2]
[311728830,1705366253932,-720.42,0.00022797,2]
[311728831,1705366253942,-500.0,0.00022797,2]
[311728832,1705366253951,-1396.69,0.00022797,2]
[311728833,1705366253961,-621.88,0.00022797,2]
[311728834,1705366253970,-500.0,0.00022797,2]
[311728835,1705366253979,-500.0,0.00022797,2]
[311728836,1705366254501,-500.0,0.00022797,2]
[311728837,1705366254542,-2439.25,0.00022797,2]
[311728838,1705366254563,-1243.24,0.00022797,2]
[311728839,1705366254581,-500.0,0.00022797,2]
[311728840,1705366254590,-500.0,0.00022797,2]
[311728841,1705366254599,-820.18,0.00022797,2]
[311728842,1705366254608,-500.0,0.00022797,2]
[311728843,1705366254617,-3429.31,0.00022797,2]
[311728844,1705366254626,-1621.64,0.00022797,2]
[311728845,1705366254635,-500.0,0.00022797,2]
[311728846,1705366254647,-500.0,0.00022797,2]
[311728847,1705366254656,-708.61,0.00022797,2]
[311728848,1705366254666,-3301.36,0.00022797,2]
[311728849,1705366254675,-1795.1,0.00022797,2]
[311728850,1705366254684,-3532.96,0.00022797,2]
[311728851,1705366254694,-1035.87,0.00022797,2]
[311728852,1705366254703,-500.0,0.00022797,2]
[311728853,1705366254714,-4510.51,0.00022797,2]
[311728854,1705366254726,-19996.53,0.00022797,2]
[311728855,1705366254736,-500.0,0.00022797,2]
[311728856,1705366254745,-722.22,0.00022797,2]
[311728857,1705366254754,-499.39122599,0.00022797,2]
[311728858,1705366254765,-872.0,0.00022797,2]
[311728859,1705366254774,-500.0,0.00022797,2]
[311728860,1705366254784,-519.56,0.00022797,2]
[311728861,1705366254793,-1057.58,0.00022797,2]
[311728862,1705366254802,-500.0,0.00022797,2]
[311728863,1705366254811,-947.83,0.00022797,2]
[311728864,1705366254821,-500.0,0.00022797,2]
[311728865,1705366254830,-1262.1,0.00022797,2]
[311728866,1705366254839,-517.59,0.00022797,2]
[311728867,1705366254848,-2107.43,0.00022797,2]
[311728868,1705366254857,-405.3697767,0.00022797,2]
[311728869,1705366254867,-500.0,0.00022797,2]
[311728870,1705366254876,-759.12,0.00022797,2]
[311728871,1705366254886,-500.0,0.00022797,2]
[311728872,1705366254895,-500.0,0.00022797,2]
[311728873,1705366254904,-500.0,0.00022797,2]
[311728874,1705366254914,-1174.32,0.00022797,2]
[311728875,1705366254923,-824.57,0.00022797,2]
[311728876,1705366254933,-818.0,0.00022797,2]
[311728877,1705366254942,-1456.0,0.00022797,2]
[311728878,1705366254951,-1069.58,0.00022797,2]
[311728879,1705366254960,-1299.46,0.00022797,2]
[311728880,1705366254969,-792.13,0.00022797,2]
[311728881,1705366254978,-500.0,0.00022797,2]
[311728882,1705366254987,-609.8,0.00022797,2]
[311728883,1705366254996,-638.73,0.00022797,2]
[311728884,1705366255005,-534.9,0.00022797,2]
[311728885,1705366255015,-500.0,0.00022797,2]
[311728886,1705366255025,-3203.3,0.00022797,2]
[311728887,1705366255036,-1004.05,0.00022797,2]
[311728888,1705366255047,-1239.55,0.00022797,2]
[311728889,1705366255057,-500.0,0.00022797,2]
[311728890,1705366255066,-764.71,0.00022797,2]
[311728891,1705366255076,-500.0,0.00022797,2]
[311728892,1705366255085,-500.0,0.00022797,2]
[311728893,1705366255094,-1752.52,0.00022797,2]
[311728894,1705366255103,-500.0,0.00022797,2]
[311728895,1705366255112,-535.15,0.00022797,2]
[311728896,1705366255122,-621.83,0.00022797,2]
[311728897,1705366255131,-1026.14,0.00022797,2]
[311728898,1705366255140,-500.0,0.00022797,2]
[311728899,1705366255151,-500.0,0.00022797,2]
[311728900,1705366255160,-507.59413734,0.00022797,2]
[311728901,1705366255170,-856.69,0.00022797,2]
[311728902,1705366255179,-500.0,0.00022797,2]
[311728903,1705366255188,-1394.45,0.00022797,2]
[311728904,1705366255197,-500.0,0.00022797,2]
[311728905,1705366255207,-500.0,0.00022797,2]
[311728906,1705366255216,-2826.5,0.00022797,2]
[311728907,1705366255225,-500.0,0.00022797,2]
[311728908,1705366255235,-711.29,0.00022797,2]
[311728909,1705366255245,-2408.74,0.00022797,2]
[311728910,1705366255255,-1036.53,0.00022797,2]
[311728911,1705366255264,-893.52,0.00022797,2]
[311728912,1705366255273,-500.0,0.00022797,2]
[311728913,1705366255282,-500.0,0.00022797,2]
[311728914,1705366255292,-500.0,0.00022797,2]
[311728915,1705366255303,-829.32,0.00022797,2]
[311728916,1705366255313,-500.0,0.00022797,2]
[311728917,1705366255323,-151.0,0.00022798,7]
[311728918,1705366255332,-151.0,0.00022798,7]
[311728919,1705366255341,-151.0,0.00022798,7]
[311728920,1705366255352,-151.0,0.00022798,7]
[311728921,1705366255361,-159.189822,0.00022798,7]
[311728922,1705366255371,-28801.67166992,0.00022798,2]
[311728923,1705366255380,-500.0,0.00022798,2]
[311728924,1705366255390,-512.2010194,0.00022798,2]
[311728925,1705366255401,-195.98724626,0.00022798,2]
[311728926,1705366255411,-500.0,0.00022798,2]
[311728927,1705366255422,-643.57779137,0.00022798,2]
[311728928,1705366255433,-500.0,0.00022798,2]
[311728929,1705366255443,-500.0,0.00022798,2]
[311728930,1705366255453,-421.29955106,0.00022798,2]
[311728931,1705366255462,-500.0,0.00022798,2]
[311728932,1705366255471,-500.98432951,0.00022798,2]
[311728933,1705366255481,-533.49002856,0.00022798,2]
[311728934,1705366255492,-361.26296955,0.00022798,2]
[311728935,1705366255502,-593.6959589,0.00022798,2]
[311728936,1705366255511,-500.0,0.00022798,2]
[311728937,1705366255522,-500.0,0.00022798,2]
[311728938,1705366255534,-500.0,0.00022798,2]
[311728939,1705366255545,-489.11941966,0.00022798,2]
[311728940,1705366255556,-500.0,0.00022798,2]
[311728941,1705366255565,-500.0,0.00022798,2]
[311728942,1705366255575,-1663.63,0.00022798,2]
[311728943,1705366255584,-500.0,0.00022798,2]
[311728944,1705366255593,-280.03323811,0.00022798,9]
[311728945,1705366255603,-261.54818147,0.00022798,2]
[311728946,1705366255612,-500.0,0.00022798,2]
[311728947,1705366255622,-294.11424151,0.00022798,2]
[311728948,1705366255632,-500.0,0.00022798,2]
[311728949,1705366255641,-500.0,0.00022798,2]
[311728950,1705366255651,-500.0,0.00022798,2]
[311728951,1705366255661,-500.0,0.00022798,2]
[311728952,1705366255671,-298.24051378,0.00022798,2]
[311728953,1705366255680,-500.0,0.00022798,2]
[311728954,1705366255690,-1095.09,0.00022798,2]
[311728955,1705366255699,-500.0,0.00022798,2]
[311728956,1705366255709,-672.73,0.00022798,2]
[311728957,1705366255719,-1515.43,0.00022798,2]
[311728958,1705366255729,-767.66,0.00022798,2]
[311728959,1705366255738,-500.0,0.00022798,2]
[311728960,1705366255747,-500.0,0.00022798,2]
[311728961,1705366255757,-627.92514903,0.00022798,2]
[311728962,1705366255767,-1406.93,0.00022798,2]
[311728963,1705366255777,-1135.2,0.00022798,2]
[311728964,1705366255786,-706.87,0.00022798,2]
[311728965,1705366255795,-500.0,0.00022798,2]
[311728966,1705366255805,-1105.51,0.00022798,2]
[311728967,1705366255814,-1061.75,0.00022798,2]
[311728968,1705366255824,-500.0,0.00022798,2]
[311728969,1705366255834,-518.95093576,0.00022798,2]
[311728970,1705366255843,-849.56,0.00022798,2]
[311728971,1705366255853,-500.0,0.00022798,2]
[311728972,1705366255862,-883.92,0.00022798,2]
[311728973,1705366255873,-1045.93,0.00022798,2]
[311728974,1705366255881,-500.0,0.00022798,2]
[311728975,1705366255891,-626.04,0.00022798,2]
[311728976,1705366255901,-1013.2510334,0.00022798,7]
[311728977,1705366255910,-888.76,0.00022798,2]
[311728978,1705366255919,-791.67,0.00022798,2]
[311728979,1705366255929,-637.88,0.00022798,2]
[311728980,1705366255938,-1314.91,0.00022798,2]
[311728981,1705366255948,-500.0,0.00022798,2]
[311728982,1705366255957,-500.0,0.00022798,2]
[311728983,1705366255966,-1000.27,0.00022798,2]
[311728984,1705366255976,-540.8,0.00022798,2]
[311728985,1705366255986,-500.0,0.00022798,2]
[311728986,1705366255995,-1476.48,0.00022798,2]
[311728987,1705366256005,-500.0,0.00022798,2]
[311728988,1705366256014,-745.38,0.00022798,2]
[311728989,1705366256023,-806.63,0.00022798,2]
[311728990,1705366256033,-848.9,0.00022798,2]
[311728991,1705366256042,-1275.22,0.00022798,2]
[311728992,1705366256051,-500.0,0.00022798,2]
[311728993,1705366256061,-990.66,0.00022798,2]
[311728994,1705366256070,-1553.16,0.00022798,2]
[311728995,1705366256080,-788.16,0.00022798,2]
[311728996,1705366256089,-924.16,0.00022798,2]
[311728997,1705366256099,-1133.72,0.00022798,2]
[311728998,1705366256108,-850.75,0.00022798,2]
[311728999,1705366256119,-527.79659125,0.00022798,2]
[311729000,1705366256128,-500.0,0.00022798,2]
[311729001,1705366256137,-500.0,0.00022798,2]
[311729002,1705366256146,-835.04,0.00022798,2]
[311729003,1705366256156,-865.65,0.00022798,2]
[311729004,1705366256167,-500.0,0.00022798,2]
[311729005,1705366256176,-500.0,0.00022798,2]
[311729006,1705366256185,-1452.27,0.00022798,2]
[311729007,1705366256195,-987.95,0.00022798,2]
[311729008,1705366256204,-1108.69,0.00022798,2]
[311729009,1705366256213,-1361.58,0.00022798,2]
[311729010,1705366256223,-1413.91,0.00022798,2]
[311729011,1705366256232,-1012.26,0.00022798,2]
[311729012,1705366256242,-500.0,0.00022798,2]
[311729013,1705366256251,-861.23,0.00022798,2]
[311729014,1705366256261,-1995.98,0.00022798,2]
[311729015,1705366256271,-1478.04,0.00022798,2]
[311729016,1705366256281,-1007.19,0.00022798,2]
[311729017,1705366256291,-1554.47,0.00022798,2]
[311729018,1705366256301,-863.37,0.00022798,2]
[311729019,1705366256311,-1325.12,0.00022798,2]
[311729020,1705366256321,-672.57,0.00022798,2]
[311729021,1705366256331,-3730.39,0.00022798,2]
[311729022,1705366256341,-1160.84,0.00022798,2]
[311729023,1705366256350,-831.11,0.00022798,2]
[311729024,1705366256360,-3667.92,0.00022798,2]
[311729025,1705366256371,-500.0,0.00022798,2]
[311729026,1705366256380,-174.202873,0.00022798,7]
[311729027,1705366256390,-151.0,0.00022798,7]
[311729028,1705366256400,-151.0,0.00022798,7]
[311729029,1705366256410,-151.0,0.00022798,7]
[311729030,1705366256420,-2000.0,0.00022799,2]
[311729031,1705366256430,-200.0,0.00022799,2]
[311729032,1705366256440,-2800.0,0.000228,8]
[311729033,1705366256451,-193.83,0.0002281,2]
[311729034,1705366256461,-800.0,0.00022816,2]
[311729035,1705366256470,-150.0,0.0002282,2]
[311729036,1705366256480,-150.0,0.00022824,2]
[311729037,1705366256489,-150.0,0.00022852,2]
[311729038,1705366256499,-160.5,0.00022885,2]
[311729039,1705366256508,-155.9,0.0002289,2]
[311729040,1705366256518,-500.0,0.00022897,2]
[311729041,1705366256528,-500.0,0.00022897,2]
[311729042,1705366256538,-500.0,0.00022897,2]
[311729043,1705366256549,-541.38,0.00022897,2]
[311729044,1705366256558,-515.03852772,0.00022897,2]
[311729045,1705366256569,-500.0,0.00022897,2]
[311729046,1705366256578,-500.0,0.00022897,2]
[311729047,1705366256588,-898.15,0.00022897,2]
[311729048,1705366256597,-500.0,0.00022897,2]
[311729049,1705366256606,-500.0,0.00022897,2]
[311729050,1705366256616,-500.0,0.00022897,2]
[311729051,1705366256627,-500.0,0.00022897,2]
[311729052,1705366256637,-500.0,0.00022897,2]
[311729053,1705366256652,-500.0,0.00022897,2]
[311729054,1705366256662,-542.10301806,0.00022897,2]
[311729055,1705366256671,-639.36,0.00022897,2]
[311729056,1705366256681,-500.0,0.00022897,2]
[311729057,1705366256690,-500.0,0.00022897,2]